Department Family,Entity,Date,Expense Type,Expense Area,Supplier,Transaction Number,Amount,Description,Supplier Postcode,Supplier Type,Expenditure Type
DWP,ILF,08/08/2013,Other Prepayments,Central,Data Voice & Video Sol,140384,1950,Engineer work for Government Secure Internet, SK1 3TZ,,Administrative
DWP,ILF,16/08/2013,Other Prepayments,Central,BT PLC,140586,2416.06,Telephone service, NE82 6XX,,Administrative
DWP,ILF,28/08/2013,Other Prepayments,Central,Action Now,140829,2100,"Data protection, FOI staff training",0,,Administrative
DWP,ILF,01/08/2013,Staff Wellbeing,Human Resources,The Wellbeing Centre,140139,610,Counselling service, NG2 6AX,,Administrative
DWP,ILF,22/08/2013,Staff Wellbeing,Human Resources,London CC Police Fraud Academy,140727,4500,Training courses,EC1A 2DP,,Administrative
DWP,ILF,06/08/2013,Independent Assessor visits,Social Work,Independent Assessor Costs,140226,2428.65,Assessment of social care needs and recommendation of ILF funding contribution,0,,Administrative
DWP,ILF,06/08/2013,Independent Assessor visits,Social Work,Independent Assessor Costs,140227,2687.85,Assessment of social care needs and recommendation of ILF funding contribution,0,,Programme
DWP,ILF,06/08/2013,Independent Assessor visits,Social Work,Independent Assessor Costs,140228,2652.75,Assessment of social care needs and recommendation of ILF funding contribution,0,,Programme
DWP,ILF,06/08/2013,Independent Assessor visits,Social Work,Independent Assessor Costs,140230,1637.4,Assessment of social care needs and recommendation of ILF funding contribution,0,,Programme
DWP,ILF,06/08/2013,Independent Assessor visits,Social Work,Independent Assessor Costs,140231,999.45,Assessment of social care needs and recommendation of ILF funding contribution,0,,Programme
DWP,ILF,06/08/2013,Independent Assessor visits,Social Work,Independent Assessor Costs,140231,1875.6,Assessment of social care needs and recommendation of ILF funding contribution,0,,Programme
DWP,ILF,06/08/2013,Independent Assessor visits,Social Work,Independent Assessor Costs,140231,1451.25,Assessment of social care needs and recommendation of ILF funding contribution,0,,Programme
DWP,ILF,06/08/2013,Independent Assessor visits,Social Work,Independent Assessor Costs,140232,1765,Assessment of social care needs and recommendation of ILF funding contribution,0,,Programme
DWP,ILF,06/08/2013,Independent Assessor visits,Social Work,Independent Assessor Costs,140234,1759.5,Assessment of social care needs and recommendation of ILF funding contribution,0,,Programme
DWP,ILF,06/08/2013,Independent Assessor visits,Social Work,Independent Assessor Costs,140235,787.95,Assessment of social care needs and recommendation of ILF funding contribution,0,,Programme
DWP,ILF,06/08/2013,Independent Assessor visits,Social Work,Independent Assessor Costs,140236,2077,Assessment of social care needs and recommendation of ILF funding contribution,0,,Programme
DWP,ILF,06/08/2013,Independent Assessor visits,Social Work,Independent Assessor Costs,140237,2587.95,Assessment of social care needs and recommendation of ILF funding contribution,0,,Programme
DWP,ILF,06/08/2013,Independent Assessor visits,Social Work,Independent Assessor Costs,140238,2578.15,Assessment of social care needs and recommendation of ILF funding contribution,0,,Programme
DWP,ILF,06/08/2013,Independent Assessor visits,Social Work,Independent Assessor Costs,140238,1670.85,Assessment of social care needs and recommendation of ILF funding contribution,0,,Programme
DWP,ILF,06/08/2013,Independent Assessor visits,Social Work,Independent Assessor Costs,140242,1335.6,Assessment of social care needs and recommendation of ILF funding contribution,0,,Programme
DWP,ILF,06/08/2013,Independent Assessor visits,Social Work,Independent Assessor Costs,140243,1293.3,Assessment of social care needs and recommendation of ILF funding contribution,0,,Programme
DWP,ILF,06/08/2013,Independent Assessor visits,Social Work,Independent Assessor Costs,140244,889.65,Assessment of social care needs and recommendation of ILF funding contribution,0,,Programme
DWP,ILF,06/08/2013,Independent Assessor visits,Social Work,Independent Assessor Costs,140245,785.7,Assessment of social care needs and recommendation of ILF funding contribution,0,,Programme
DWP,ILF,06/08/2013,Independent Assessor visits,Social Work,Independent Assessor Costs,140246,2325.15,Assessment of social care needs and recommendation of ILF funding contribution,0,,Programme
DWP,ILF,06/08/2013,Independent Assessor visits,Social Work,Independent Assessor Costs,140247,1498.5,Assessment of social care needs and recommendation of ILF funding contribution,0,,Programme
DWP,ILF,06/08/2013,Independent Assessor visits,Social Work,Independent Assessor Costs,140248,2299.05,Assessment of social care needs and recommendation of ILF funding contribution,0,,Programme
DWP,ILF,06/08/2013,Independent Assessor visits,Social Work,Independent Assessor Costs,140251,1429.65,Assessment of social care needs and recommendation of ILF funding contribution,0,,Programme
DWP,ILF,06/08/2013,Independent Assessor visits,Social Work,Independent Assessor Costs,140252,1536.3,Assessment of social care needs and recommendation of ILF funding contribution,0,,Programme
DWP,ILF,06/08/2013,Independent Assessor visits,Social Work,Independent Assessor Costs,140253,938.6,Assessment of social care needs and recommendation of ILF funding contribution,0,,Programme
DWP,ILF,06/08/2013,Independent Assessor visits,Social Work,Independent Assessor Costs,140254,2001.15,Assessment of social care needs and recommendation of ILF funding contribution,0,,Programme
DWP,ILF,06/08/2013,Independent Assessor visits,Social Work,Independent Assessor Costs,140256,980.1,Assessment of social care needs and recommendation of ILF funding contribution,0,,Programme
DWP,ILF,06/08/2013,Independent Assessor visits,Social Work,Independent Assessor Costs,140258,1419.75,Assessment of social care needs and recommendation of ILF funding contribution,0,,Programme
DWP,ILF,06/08/2013,Independent Assessor visits,Social Work,Independent Assessor Costs,140259,1192.05,Assessment of social care needs and recommendation of ILF funding contribution,0,,Programme
DWP,ILF,12/08/2013,Independent Assessor visits,Social Work,Independent Assessor Costs,140420,632.25,Assessment of social care needs and recommendation of ILF funding contribution,0,,Programme
DWP,ILF,12/08/2013,Independent Assessor visits,Social Work,Independent Assessor Costs,140420,1354.95,Assessment of social care needs and recommendation of ILF funding contribution,0,,Programme
DWP,ILF,12/08/2013,Independent Assessor visits,Social Work,Independent Assessor Costs,140421,1512.45,Assessment of social care needs and recommendation of ILF funding contribution,0,,Programme
DWP,ILF,12/08/2013,Independent Assessor visits,Social Work,Independent Assessor Costs,140422,2676.6,Assessment of social care needs and recommendation of ILF funding contribution,0,,Programme
DWP,ILF,12/08/2013,Independent Assessor visits,Social Work,Independent Assessor Costs,140424,2514.6,Assessment of social care needs and recommendation of ILF funding contribution,0,,Programme
DWP,ILF,12/08/2013,Independent Assessor visits,Social Work,Independent Assessor Costs,140424,941.4,Assessment of social care needs and recommendation of ILF funding contribution,0,,Programme
DWP,ILF,12/08/2013,Independent Assessor visits,Social Work,Independent Assessor Costs,140425,1477.8,Assessment of social care needs and recommendation of ILF funding contribution,0,,Programme
DWP,ILF,12/08/2013,Independent Assessor visits,Social Work,Independent Assessor Costs,140425,1137.6,Assessment of social care needs and recommendation of ILF funding contribution,0,,Programme
DWP,ILF,12/08/2013,Independent Assessor visits,Social Work,Independent Assessor Costs,140427,1770.4,Assessment of social care needs and recommendation of ILF funding contribution,0,,Programme
DWP,ILF,12/08/2013,Independent Assessor visits,Social Work,Independent Assessor Costs,140427,2229.85,Assessment of social care needs and recommendation of ILF funding contribution,0,,Programme
DWP,ILF,12/08/2013,Independent Assessor visits,Social Work,Independent Assessor Costs,140429,2646,Assessment of social care needs and recommendation of ILF funding contribution,0,,Programme
DWP,ILF,12/08/2013,Independent Assessor visits,Social Work,Independent Assessor Costs,140430,1204.65,Assessment of social care needs and recommendation of ILF funding contribution,0,,Programme
DWP,ILF,12/08/2013,Independent Assessor visits,Social Work,Independent Assessor Costs,140431,2231.1,Assessment of social care needs and recommendation of ILF funding contribution,0,,Programme
DWP,ILF,12/08/2013,Independent Assessor visits,Social Work,Independent Assessor Costs,140433,1362.6,Assessment of social care needs and recommendation of ILF funding contribution,0,,Programme
DWP,ILF,12/08/2013,Independent Assessor visits,Social Work,Independent Assessor Costs,140434,594.45,Assessment of social care needs and recommendation of ILF funding contribution,0,,Programme
DWP,ILF,12/08/2013,Independent Assessor visits,Social Work,Independent Assessor Costs,140435,910.8,Assessment of social care needs and recommendation of ILF funding contribution,0,,Programme
DWP,ILF,12/08/2013,Independent Assessor visits,Social Work,Independent Assessor Costs,140435,2817.9,Assessment of social care needs and recommendation of ILF funding contribution,0,,Programme
DWP,ILF,12/08/2013,Independent Assessor visits,Social Work,Independent Assessor Costs,140436,1243.8,Assessment of social care needs and recommendation of ILF funding contribution,0,,Programme
DWP,ILF,12/08/2013,Independent Assessor visits,Social Work,Independent Assessor Costs,140438,1528.65,Assessment of social care needs and recommendation of ILF funding contribution,0,,Programme
DWP,ILF,12/08/2013,Independent Assessor visits,Social Work,Independent Assessor Costs,140439,2252.7,Assessment of social care needs and recommendation of ILF funding contribution,0,,Programme
DWP,ILF,12/08/2013,Independent Assessor visits,Social Work,Independent Assessor Costs,140440,2093.55,Assessment of social care needs and recommendation of ILF funding contribution,0,,Programme
DWP,ILF,12/08/2013,Independent Assessor visits,Social Work,Independent Assessor Costs,140441,1268.35,Assessment of social care needs and recommendation of ILF funding contribution,0,,Programme
DWP,ILF,12/08/2013,Independent Assessor visits,Social Work,Independent Assessor Costs,140442,2036.7,Assessment of social care needs and recommendation of ILF funding contribution,0,,Programme
DWP,ILF,12/08/2013,Independent Assessor visits,Social Work,Independent Assessor Costs,140443,2363.85,Assessment of social care needs and recommendation of ILF funding contribution,0,,Programme
DWP,ILF,12/08/2013,Independent Assessor visits,Social Work,Independent Assessor Costs,140444,795.6,Assessment of social care needs and recommendation of ILF funding contribution,0,,Programme
DWP,ILF,12/08/2013,Independent Assessor visits,Social Work,Independent Assessor Costs,140447,979.65,Assessment of social care needs and recommendation of ILF funding contribution,0,,Programme
DWP,ILF,19/08/2013,Independent Assessor visits,Social Work,Independent Assessor Costs,140603,668.7,Assessment of social care needs and recommendation of ILF funding contribution,0,,Programme
DWP,ILF,19/08/2013,Independent Assessor visits,Social Work,Independent Assessor Costs,140604,873.45,Assessment of social care needs and recommendation of ILF funding contribution,0,,Programme
DWP,ILF,19/08/2013,Independent Assessor visits,Social Work,Independent Assessor Costs,140605,2444.7,Assessment of social care needs and recommendation of ILF funding contribution,0,,Programme
DWP,ILF,19/08/2013,Independent Assessor visits,Social Work,Independent Assessor Costs,140607,2524.5,Assessment of social care needs and recommendation of ILF funding contribution,0,,Programme
DWP,ILF,19/08/2013,Independent Assessor visits,Social Work,Independent Assessor Costs,140608,906.15,Assessment of social care needs and recommendation of ILF funding contribution,0,,Programme
DWP,ILF,19/08/2013,Independent Assessor visits,Social Work,Independent Assessor Costs,140609,1860.3,Assessment of social care needs and recommendation of ILF funding contribution,0,,Programme
DWP,ILF,19/08/2013,Independent Assessor visits,Social Work,Independent Assessor Costs,140610,1265.4,Assessment of social care needs and recommendation of ILF funding contribution,0,,Programme
DWP,ILF,19/08/2013,Independent Assessor visits,Social Work,Independent Assessor Costs,140612,1217.4,Assessment of social care needs and recommendation of ILF funding contribution,0,,Programme
DWP,ILF,19/08/2013,Independent Assessor visits,Social Work,Independent Assessor Costs,140612,2087.55,Assessment of social care needs and recommendation of ILF funding contribution,0,,Programme
DWP,ILF,19/08/2013,Independent Assessor visits,Social Work,Independent Assessor Costs,140613,1303.65,Assessment of social care needs and recommendation of ILF funding contribution,0,,Programme
DWP,ILF,19/08/2013,Independent Assessor visits,Social Work,Independent Assessor Costs,140614,1960.2,Assessment of social care needs and recommendation of ILF funding contribution,0,,Programme
DWP,ILF,27/08/2013,Independent Assessor visits,Social Work,Independent Assessor Costs,140751,1551.6,Assessment of social care needs and recommendation of ILF funding contribution,0,,Programme
DWP,ILF,27/08/2013,Independent Assessor visits,Social Work,Independent Assessor Costs,140752,1168.2,Assessment of social care needs and recommendation of ILF funding contribution,0,,Programme
DWP,ILF,27/08/2013,Independent Assessor visits,Social Work,Independent Assessor Costs,140755,1400.85,Assessment of social care needs and recommendation of ILF funding contribution,0,,Programme
DWP,ILF,27/08/2013,Independent Assessor visits,Social Work,Independent Assessor Costs,140756,783.9,Assessment of social care needs and recommendation of ILF funding contribution,0,,Programme
DWP,ILF,27/08/2013,Independent Assessor visits,Social Work,Independent Assessor Costs,140756,2638.35,Assessment of social care needs and recommendation of ILF funding contribution,0,,Programme
DWP,ILF,27/08/2013,Independent Assessor visits,Social Work,Independent Assessor Costs,140759,1193.85,Assessment of social care needs and recommendation of ILF funding contribution,0,,Programme
DWP,ILF,27/08/2013,Independent Assessor visits,Social Work,Independent Assessor Costs,140760,940.5,Assessment of social care needs and recommendation of ILF funding contribution,0,,Programme
DWP,ILF,27/08/2013,Independent Assessor visits,Social Work,Independent Assessor Costs,140761,863.7,Assessment of social care needs and recommendation of ILF funding contribution,0,,Programme
DWP,ILF,27/08/2013,Independent Assessor visits,Social Work,Independent Assessor Costs,140762,2036.25,Assessment of social care needs and recommendation of ILF funding contribution,0,,Programme
DWP,ILF,27/08/2013,Independent Assessor visits,Social Work,Independent Assessor Costs,140763,1018.8,Assessment of social care needs and recommendation of ILF funding contribution,0,,Programme
DWP,ILF,27/08/2013,Independent Assessor visits,Social Work,Independent Assessor Costs,140764,1255.5,Assessment of social care needs and recommendation of ILF funding contribution,0,,Programme
DWP,ILF,30/08/2013,Independent Assessor visits,Social Work,Independent Assessor Costs,140872,2074.05,Assessment of social care needs and recommendation of ILF funding contribution,0,,Programme
DWP,ILF,01/08/2013,Other Independent Assessor Claims,Social Work,Calders,140134,785.22,Hotel bookings,LS16 6RF,,Administrative
DWP,ILF,06/08/2013,Other Independent Assessor Claims,Social Work,Independent Assessor Costs,140239,701.37,Assessment of social care needs and recommendation of ILF funding contribution,0,,Programme
DWP,ILF,12/08/2013,Other Independent Assessor Claims,Social Work,Independent Assessor Costs,140445,619.07,Assessment of social care needs and recommendation of ILF funding contribution,0,,Programme
DWP,ILF,19/08/2013,Other Independent Assessor Claims,Social Work,Independent Assessor Costs,140611,570.75,Assessment of social care needs and recommendation of ILF funding contribution,0,,Programme
DWP,ILF,27/08/2013,Other Independent Assessor Claims,Social Work,Independent Assessor Costs,140757,561.54,Assessment of social care needs and recommendation of ILF funding contribution,0,,Programme
DWP,ILF,20/08/2013,Rent & Facilities Lease,Facilities,Land Securities Trillium,140656,68520.62,"Building lease,maintenance and utilities", LS11 9DX,,Administrative
DWP,ILF,20/08/2013,Rent & Facilities Lease,Facilities,Land Securities Trillium,140657,1387.91,"Building lease,maintenance and utilities", LS11 9DX,,Administrative
DWP,ILF,22/08/2013,Rent & Facilities Lease,Facilities,Land Securities Trillium,140731,68520.62,"Building lease,maintenance and utilities", LS11 9DX,,Administrative
DWP,ILF,22/08/2013,Rent & Facilities Lease,Facilities,Land Securities Trillium,140732,1387.91,"Building lease,maintenance and utilities", LS11 9DX,,Administrative
DWP,ILF,16/08/2013,Additional Facilities,Facilities,TNT UK Ltd,140590,1901.96,Courier service, BL4 9AR,,Administrative
DWP,ILF,19/08/2013,Additional Facilities,Facilities,Nottingham City Council,140618,1102.2,Rates , NG1 2DE,,Administrative
DWP,ILF,28/08/2013,Additional Facilities,Facilities,TNT UK Ltd,140793,2027.52,Courier service, BL4 9AR,,Administrative
DWP,ILF,30/08/2013,Additional Facilities,Facilities,TNT UK Ltd,140899,759.65,Courier service, BL4 9AR,,Administrative
DWP,ILF,01/08/2013,Utilities,Facilities,DWP,140130,3017.17,Business subscription iro Grant Recovery, FY5 3TA,,Administrative
DWP,ILF,01/08/2013,Utilities,Facilities,DWP,140131,2479.89,Business subscription iro Grant Recovery, FY5 3TA,,Administrative
DWP,ILF,30/08/2013,Utilities,Facilities,Land Securities Trillium,140900,1094.92,"Building lease,maintenance and utilities", LS11 9DX,,Administrative
DWP,ILF,30/08/2013,Utilities,Facilities,Land Securities Trillium,140901,3951.39,"Building lease,maintenance and utilities", LS11 9DX,,Administrative
DWP,ILF,15/08/2013,Rates,Facilities,Nottingham City Council,140557,6947,Rates , NG1 2DE,,Administrative
DWP,ILF,16/08/2013,Phone Charges,Facilities,BT PLC,140586,2416.08,Telephone service, NE82 6XX,,Administrative
DWP,ILF,16/08/2013,Internal Audit Services,Information & Governance,Pricewaterhouse Coopers LLP,140564,8371.74,Internal Audit Provision,E14 9SQ,,Administrative
DWP,ILF,05/08/2013,Printing & Literature ,Communications,Capita Transaction Interpreting,140476,547.4,Printing service,OL3 5FZ,,Administrative
DWP,ILF,19/08/2013,Printing & Literature ,Communications,CDS,140623,2400,0,0,,Administrative
DWP,ILF,13/08/2013,Stakeholder Engagement,Social Work,Calders,140453,1013.93,Hotel bookings,LS16 6RF,,Administrative
DWP,ILF,22/08/2013,Technical IT Support,Information & Governance,Desk Top Publishing Group,140730,1044.3,Proactive Support Service, LS10 1RJ,,Administrative
DWP,ILF,01/08/2013,Software Licensing,Human Resources,Ceridian Ltd,140137,1592.03,Payroll and HR services, E14 9GE,,Administrative
DWP,ILF,28/08/2013,Software Licensing,Human Resources,Ceridian Ltd,140828,508.37,Payroll and HR services, E14 9GE,,Administrative
DWP,ILF,30/08/2013,Software Licensing,Human Resources,Ceridian Ltd,140871,1083.67,Payroll and HR services, E14 9GE,,Administrative
DWP,ILF,05/08/2013,Business Continuity,Information & Governance,Node4,140212,1410,Website services, DE24 8HZ,,Administrative
DWP,ILF,07/08/2013,Information Security,Information & Governance,Data Voice & Video Sol,140369,3760.75,Engineer work for Government Secure Internet, SK1 3TZ,,Administrative
DWP,ILF,08/08/2013,Information Security,Information & Governance,Data Voice & Video Sol,140384,3900,Engineer work for Government Secure Internet, SK1 3TZ,,Administrative
DWP,ILF,13/08/2013,Information Security,Information & Governance,Data Voice & Video Sol,140477,1170,Engineer work for Government Secure Internet, SK1 3TZ,,Administrative
DWP,ILF,19/08/2013,Information Security,Information & Governance,Data Voice & Video Sol,140616,1065.24,Engineer work for Government Secure Internet, SK1 3TZ,,Administrative
DWP,ILF,05/08/2013,Website Services,Information & Governance,Node4,140212,540,Website services, DE24 8HZ,,Administrative
DWP,ILF,19/08/2013,Misc IT Costs,Information & Governance,XMA Ltd,140627,683.42,Printer Toner Cartidges,NG11 7EP,,Administrative
DWP,ILF,07/08/2013,Legal Costs,Payment Security,Harvey Ingram LLP Solicitors,140372,633.6,"Provision of Legal Service iro debt recovery, human resource, procurement or organisational litigation",LE1 6TX,,Administrative
DWP,ILF,07/08/2013,Legal Costs,Payment Security,Harvey Ingram LLP Solicitors,140374,662.4,"Provision of Legal Service iro debt recovery, human resource, procurement or organisational litigation",LE1 6TX,,Administrative
DWP,ILF,07/08/2013,Legal Costs,Payment Security,Harvey Ingram LLP Solicitors,140375,1313.64,"Provision of Legal Service iro debt recovery, human resource, procurement or organisational litigation",LE1 6TX,,Administrative
DWP,ILF,14/08/2013,General T&S ,Corporate Affairs,Redfern Travel Ltd,140533,513.75,Travel and Accomodation bookings,BD1 3AZ,,Administrative
DWP,ILF,14/08/2013,General T&S ,Social Work,Redfern Travel Ltd,140533,2296.66,Travel and Accomodation bookings,BD1 3AZ,,Administrative
